fUSD/lending_fUSD_20250630
["ID","MTS","AMOUNT","RATE_DAILY","PERIOD"]
[368643050,1751261455876,-3100.49,0.00016794,2]
[368643051,1751261455886,-490.0,0.00016794,2]
[368643052,1751261455896,-490.0,0.00016794,2]
[368643053,1751261455906,-490.0,0.00016794,2]
[368643054,1751261455915,-710.04,0.00016794,2]
[368643055,1751261455924,-2118.55,0.00016794,2]
[368643056,1751261455934,-490.0,0.00016794,2]
[368643057,1751261455944,-490.0,0.00016794,2]
[368643058,1751261455954,-549.16,0.00016794,2]
[368643059,1751261455964,-3384.16,0.00016794,2]
[368643060,1751261455974,-490.0,0.00016794,2]
[368643061,1751261455984,-372.83590179,0.00016794,2]
[368643062,1751261455994,-490.0,0.00016794,2]
[368643063,1751261456003,-490.0,0.00016794,2]
[368643064,1751261456013,-490.0,0.00016794,2]
[368643065,1751261456022,-490.0,0.00016794,2]
[368643066,1751261456031,-1227.57,0.00016794,2]
[368643067,1751261456041,-490.0,0.00016794,2]
[368643068,1751261456050,-490.0,0.00016794,2]
[368643069,1751261456060,-1799.25,0.00016794,2]
[368643070,1751261456070,-1816.04,0.00016794,2]
[368643071,1751261456079,-490.0,0.00016794,2]
[368643072,1751261456089,-490.0,0.00016794,2]
[368643073,1751261456098,-2404.03,0.00016794,2]
[368643074,1751261456108,-995.14,0.00016794,2]
[368643075,1751261456117,-490.0,0.00016794,2]
[368643076,1751261456127,-490.0,0.00016794,2]
[368643077,1751261456136,-2254.02,0.00016794,2]
[368643078,1751261456146,-581.42,0.00016794,2]
[368643079,1751261456155,-2662.57,0.00016794,2]
[368643080,1751261456165,-649.91,0.00016794,2]
[368643081,1751261456175,-1342.12,0.00016794,2]
[368643082,1751261456184,-490.0,0.00016794,2]
[368643083,1751261456195,-1108.9,0.00016794,2]
[368643084,1751261456205,-682.65,0.00016794,2]
[368643085,1751261456214,-1005.52,0.00016794,2]
[368643086,1751261456224,-490.0,0.00016794,2]
[368643087,1751261456233,-490.0,0.00016794,2]
[368643088,1751261456243,-490.0,0.00016794,2]
[368643089,1751261456252,-490.0,0.00016794,2]
[368643090,1751261456261,-718.33,0.00016794,2]
[368643091,1751261456270,-490.0,0.00016794,2]
[368643092,1751261456279,-490.0,0.00016794,2]
[368643093,1751261456288,-1145.34,0.00016794,2]
[368643094,1751261456298,-1446.31,0.00016794,2]
[368643095,1751261456307,-1226.79,0.00016794,2]
[368643096,1751261456316,-752.7,0.00016794,2]
[368643097,1751261456326,-490.0,0.00016794,2]
[368643098,1751261456335,-822.28,0.00016794,2]
[368643099,1751261456345,-490.0,0.00016794,2]
[368643100,1751261456354,-490.0,0.00016794,2]
[368643101,1751261456364,-1115.84,0.00016794,2]
[368643102,1751261456374,-665.22,0.00016794,2]
[368643103,1751261456384,-653.56,0.00016794,2]
[368643104,1751261456393,-490.0,0.00016794,2]
[368643105,1751261456403,-1000.0,0.00016794,2]
[368643106,1751261456412,-490.0,0.00016794,2]
[368643107,1751261456422,-490.0,0.00016794,2]
[368643108,1751261456431,-500.0,0.00016794,2]
[368643109,1751261456441,-490.0,0.00016794,2]
[368643110,1751261456450,-1489.84,0.00016794,2]
[368643111,1751261456459,-490.0,0.00016794,2]
[368643112,1751261456469,-2269.73,0.00016794,2]
[368643113,1751261456482,-490.0,0.00016794,2]
[368643114,1751261456491,-490.0,0.00016794,2]
[368643115,1751261456501,-781.47,0.00016794,2]
[368643116,1751261456508,-1229.48,0.00016794,2]
[368643117,1751261456518,-644.32,0.00016794,2]
[368643118,1751261456526,-490.0,0.00016794,2]
[368643119,1751261456534,-500.0,0.00016794,2]
[368643120,1751261456542,-500.0,0.00016794,2]
[368643121,1751261456550,-694.92,0.00016794,2]
[368643122,1751261456559,-1446.59,0.00016794,2]
[368643123,1751261456567,-490.0,0.00016794,2]
[368643124,1751261456575,-491.58221541,0.00016794,2]
[368643125,1751261456583,-490.0,0.00016794,2]
[368643126,1751261456590,-1008.18,0.00016794,2]
[368643127,1751261456598,-2528.56,0.00016794,2]
[368643128,1751261456606,-506.45146262,0.00016794,2]
[368643129,1751261456614,-683.21,0.00016794,2]
[368643130,1751261456622,-490.0,0.00016794,2]
[368643131,1751261456630,-627.02,0.00016794,2]
[368643132,1751261456638,-739.29,0.00016794,2]
[368643133,1751261456646,-1586.23,0.00016794,2]
[368643134,1751261456655,-1894.93,0.00016794,2]
[368643135,1751261456664,-490.0,0.00016794,2]
[368643136,1751261456672,-3786.86,0.00016794,2]
[368643137,1751261456680,-1249.16,0.00016794,2]
[368643138,1751261456687,-1249.16,0.00016794,2]
[368643139,1751261456695,-1074.26,0.00016794,2]
[368643140,1751261456702,-490.0,0.00016794,2]
[368643141,1751261456708,-490.0,0.00016794,2]
[368643142,1751261456715,-3723.13,0.00016794,2]
[368643143,1751261456721,-490.0,0.00016794,2]
[368643144,1751261456728,-490.0,0.00016794,2]
[368643145,1751261456736,-490.0,0.00016794,2]
[368643146,1751261456743,-490.0,0.00016794,2]
[368643147,1751261456751,-1023.67,0.00016794,2]
[368643148,1751261456758,-2651.27,0.00016794,2]
[368643149,1751261456765,-490.0,0.00016794,2]
[368643150,1751261456772,-582.05107076,0.00016794,2]
[368643151,1751261456780,-924.75,0.00016794,2]
[368643152,1751261456786,-2583.9,0.00016794,2]
[368643153,1751261456794,-490.0,0.00016794,2]
[368643154,1751261456801,-490.0,0.00016794,2]
[368643155,1751261456809,-4185.06,0.00016794,2]
[368643156,1751261456816,-490.0,0.00016794,2]
[368643157,1751261456823,-490.0,0.00016794,2]
[368643158,1751261456829,-1761.64,0.00016794,2]
[368643159,1751261456836,-1503.67,0.00016794,2]
[368643160,1751261456842,-1617.67,0.00016794,2]
[368643161,1751261456850,-378.57236438,0.00016794,2]
[368643162,1751261456856,-853.81,0.00016794,2]
[368643163,1751261456862,-490.0,0.00016794,2]
[368643164,1751261456868,-522.95,0.00016794,2]
[368643165,1751261456875,-621.38,0.00016794,2]
[368643166,1751261456881,-1912.58,0.00016794,2]
[368643167,1751261456888,-1252.54,0.00016794,2]
[368643168,1751261456894,-837.49,0.00016794,2]
[368643169,1751261456902,-564.98,0.00016794,2]
[368643170,1751261456909,-490.0,0.00016794,2]
[368643171,1751261456916,-490.0,0.00016794,2]
[368643172,1751261456923,-500.0,0.00016794,2]
[368643173,1751261456930,-2657.1,0.00016794,2]
[368643174,1751261456939,-490.0,0.00016794,2]
[368643175,1751261456948,-730.3,0.00016794,2]
[368643176,1751261456957,-3154.04,0.00016794,2]
[368643177,1751261456967,-490.0,0.00016794,2]
[368643178,1751261456976,-490.0,0.00016794,2]
[368643179,1751261456986,-490.0,0.00016794,2]
[368643180,1751261456996,-786.71,0.00016794,2]
[368643181,1751261457006,-2437.03,0.00016794,2]
[368643182,1751261457015,-86252.24,0.00016795,2]
[368643183,1751261457025,-299.697255,0.00016795,2]
[368643184,1751261457037,-151.0,0.00016795,2]
[368643185,1751261457047,-151.0,0.00016795,2]
[368643186,1751261457056,-151.0,0.00016795,2]
[368643187,1751261457066,-151.0,0.00016795,2]
[368643188,1751261457075,-151.0,0.00016795,2]
[368643189,1751261457085,-151.0,0.00016795,2]
[368643190,1751261457094,-259.056324,0.00016795,2]
[368643191,1751261457104,-649.807339,0.00016795,2]
[368643192,1751261457114,-649.807339,0.00016795,2]
[368643193,1751261457123,-649.807339,0.00016795,2]
[368643194,1751261457133,-649.807339,0.00016795,2]
[368643195,1751261457143,-649.807339,0.00016795,2]
[368643196,1751261457152,-649.807339,0.00016795,2]
[368643197,1751261457162,-649.807339,0.00016795,2]
[368643198,1751261457171,-649.807339,0.00016795,2]
[368643199,1751261457181,-549.49,0.00016795,2]
[368643200,1751261457191,-151.0,0.00016796,2]
[368643201,1751261457200,-1410.14,0.00016796,2]
[368643202,1751261457210,-151.0,0.00016796,2]
[368643203,1751261457219,-649.807339,0.00016796,2]
[368643204,1751261457232,-649.807339,0.00016796,2]
[368643205,1751261457246,-638.03,0.00016796,2]
[368643206,1751261457264,-500.0,0.00016796,2]
[368643207,1751261457276,-500.0,0.00016796,2]
[368643208,1751261457292,-500.0,0.00016796,2]
[368643209,1751261457308,-549.49,0.00016796,2]
[368643210,1751261457324,-549.49,0.00016796,2]
[368643211,1751261457338,-500.0,0.00016796,2]
[368643212,1751261457349,-500.0,0.00016796,2]
[368643213,1751261457365,-1894.93,0.00016796,2]
[368643214,1751261457381,-1249.16,0.00016796,2]
[368643215,1751261457397,-837.49,0.00016796,2]
[368643216,1751261457413,-837.49,0.00016796,2]
[368643217,1751261457429,-684.83,0.00016796,2]
[368643218,1751261457444,-500.0,0.00016796,2]
[368643219,1751261457459,-9799.37,0.00016796,2]
[368643220,1751261457475,-151.0,0.00016797,2]
[368643221,1751261457491,-300.224707,0.00016797,2]
[368643222,1751261457506,-151.0,0.00016797,2]
[368643223,1751261457519,-151.0,0.00016797,2]
[368643224,1751261457531,-159.470025,0.00016797,2]
[368643225,1751261457549,-152.384686,0.00016797,2]
[368643226,1751261457562,-151.0,0.00016797,2]
[368643227,1751261457573,-151.0,0.00016797,2]
[368643228,1751261457587,-151.0,0.00016797,2]
[368643229,1751261457603,-151.0,0.00016797,2]
[368643230,1751261457614,-151.0,0.00016797,2]
[368643231,1751261457628,-151.0,0.00016797,2]
[368643232,1751261457640,-151.0,0.00016797,2]
[368643233,1751261457653,-152.857066,0.00016797,2]
[368643234,1751261457667,-151.0,0.00016797,2]
[368643235,1751261457680,-151.0,0.00016797,2]
[368643236,1751261457694,-1410.14,0.00016797,2]
[368643237,1751261457707,-1410.14,0.00016797,2]
[368643238,1751261457721,-151.0,0.00016797,2]
[368643239,1751261457733,-231.718864,0.00016797,2]
[368643240,1751261457747,-607.13,0.00016797,2]
[368643241,1751261457760,-649.807339,0.00016797,2]
[368643242,1751261457773,-649.807339,0.00016797,2]
[368643243,1751261457784,-649.807339,0.00016797,2]
[368643244,1751261457798,-649.807344,0.00016797,2]
[368643245,1751261457811,-638.03,0.00016797,2]
[368643246,1751261457824,-3980.85,0.00016797,2]
[368643247,1751261457837,-2650.16,0.00016797,2]
[368643248,1751261457850,-2055.09,0.00016797,2]
[368643249,1751261457864,-563.87,0.00016797,2]
[368643250,1751261457877,-1581.3,0.00016797,2]
[368643251,1751261457889,-3563.22,0.00016797,2]
[368643252,1751261457902,-367.90309227,0.00016797,2]
[368643253,1751261457917,-4072.88,0.00016797,2]
[368643254,1751261457931,-652.37,0.00016797,2]
[368643255,1751261457944,-1178.92,0.00016797,2]
[368643256,1751261457957,-2806.23,0.00016797,2]
[368643257,1751261457969,-2990.96,0.00016797,2]
[368643258,1751261457983,-3541.0,0.00016797,2]
[368643259,1751261457996,-1145.67,0.00016797,2]
[368643260,1751261458009,-3317.59,0.00016797,2]
[368643261,1751261458022,-490.0,0.00016797,2]
[368643262,1751261458036,-500.0,0.00016797,2]
[368643263,1751261458057,-883.76,0.00016797,2]
[368643264,1751261458070,-2527.14,0.00016797,2]
[368643265,1751261458084,-500.0,0.00016797,2]
[368643266,1751261458098,-2978.25,0.00016797,2]
[368643267,1751261458112,-500.0,0.00016797,2]
[368643268,1751261458125,-2462.91,0.00016797,2]
[368643269,1751261458138,-490.0,0.00016797,2]
[368643270,1751261458152,-803.07,0.00016797,2]
[368643271,1751261458165,-490.0,0.00016797,2]
[368643272,1751261458179,-549.49,0.00016797,2]
[368643273,1751261458193,-500.0,0.00016797,2]
[368643274,1751261458207,-500.0,0.00016797,2]
[368643275,1751261458220,-1894.93,0.00016797,2]
[368643276,1751261458234,-1249.16,0.00016797,2]
[368643277,1751261458247,-837.49,0.00016797,2]
[368643278,1751261458260,-837.49,0.00016797,2]
[368643279,1751261458273,-500.0,0.00016797,2]
[368643280,1751261458286,-151.0,0.00016798,2]
[368643281,1751261458299,-158.424201,0.00016798,2]
[368643282,1751261458312,-151.0,0.00016798,2]
[368643283,1751261458325,-151.0,0.00016798,2]
[368643284,1751261458338,-151.0,0.00016798,2]
[368643285,1751261458352,-151.0,0.00016798,2]
[368643286,1751261458365,-280.867488,0.00016798,2]
[368643287,1751261458378,-1395.09,0.00016798,2]
[368643288,1751261458391,-490.0,0.00016798,2]
[368643289,1751261458403,-490.0,0.00016798,2]
[368643290,1751261458416,-490.0,0.00016798,2]
[368643291,1751261458429,-490.0,0.00016798,2]
[368643292,1751261458441,-490.0,0.00016798,2]
[368643293,1751261458455,-490.0,0.00016798,2]
[368643294,1751261458467,-794.13,0.00016798,2]
[368643295,1751261458483,-679.89,0.00016798,2]
[368643296,1751261458496,-1452.72,0.00016798,2]
[368643297,1751261458510,-492.51087138,0.00016798,2]
[368643298,1751261458523,-490.0,0.00016798,2]
[368643299,1751261458536,-490.0,0.00016798,2]
[368643300,1751261458550,-490.0,0.00016798,2]
[368643301,1751261458564,-490.0,0.00016798,2]
[368643302,1751261458577,-490.0,0.00016798,2]
[368643303,1751261458589,-501.22318371,0.00016798,2]
[368643304,1751261458602,-490.0,0.00016798,2]
[368643305,1751261458615,-490.0,0.00016798,2]
[368643306,1751261458628,-491.57138845,0.00016798,2]
[368643307,1751261458641,-511.51,0.00016798,2]
[368643308,1751261458655,-763.63,0.00016798,2]
[368643309,1751261458668,-524.78,0.00016798,2]
[368643310,1751261458681,-2329.09,0.00016798,2]
[368643311,1751261458693,-1075.75,0.00016798,2]
[368643312,1751261458705,-1494.3,0.00016798,2]
[368643313,1751261458718,-490.0,0.00016798,2]
[368643314,1751261458732,-490.0,0.00016798,2]
[368643315,1751261458744,-490.0,0.00016798,2]
[368643316,1751261458757,-1078.32,0.00016798,2]
[368643317,1751261458770,-490.0,0.00016798,2]
[368643318,1751261458782,-494.42819123,0.00016798,2]
[368643319,1751261458795,-490.0,0.00016798,2]
[368643320,1751261458808,-490.0,0.00016798,2]
[368643321,1751261458820,-744.0,0.00016798,2]
[368643322,1751261458833,-953.51,0.00016798,2]
[368643323,1751261458845,-490.0,0.00016798,2]
[368643324,1751261458858,-555.48,0.00016798,2]
[368643325,1751261458870,-721.23,0.00016798,2]
[368643326,1751261458884,-490.0,0.00016798,2]
[368643327,1751261458896,-507.49,0.00016798,2]
[368643328,1751261458909,-490.0,0.00016798,2]
[368643329,1751261458922,-490.0,0.00016798,2]
[368643330,1751261458934,-490.0,0.00016798,2]
[368643331,1751261458947,-490.0,0.00016798,2]
[368643332,1751261458960,-614.67,0.00016798,2]
[368643333,1751261458973,-490.0,0.00016798,2]
[368643334,1751261458986,-490.0,0.00016798,2]
[368643335,1751261458998,-490.0,0.00016798,2]
[368643336,1751261459011,-490.0,0.00016798,2]
[368643337,1751261459023,-490.0,0.00016798,2]
[368643338,1751261459036,-490.0,0.00016798,2]
[368643339,1751261459048,-490.0,0.00016798,2]
[368643340,1751261459061,-956.35,0.00016798,2]
[368643341,1751261459074,-1703.01,0.00016798,2]
[368643342,1751261459087,-490.0,0.00016798,2]
[368643343,1751261459100,-1508.0,0.00016798,2]
[368643344,1751261459114,-306.34249681,0.00016798,2]
[368643345,1751261459127,-490.0,0.00016798,2]
[368643346,1751261459140,-738.53,0.00016798,2]
[368643347,1751261459155,-1598.72,0.00016798,2]
[368643348,1751261459169,-523.05,0.00016798,2]
[368643349,1751261459183,-616.58,0.00016798,2]
[368643350,1751261459195,-960.25,0.00016798,2]
[368643351,1751261459208,-499.51,0.00016798,2]
[368643352,1751261459221,-490.0,0.00016798,2]
[368643353,1751261459232,-1509.99,0.00016798,2]
[368643354,1751261459245,-490.0,0.00016798,2]
[368643355,1751261459257,-749.32,0.00016798,2]
[368643356,1751261459270,-490.0,0.00016798,2]
[368643357,1751261459283,-1249.15,0.00016798,2]
[368643358,1751261459295,-1062.37,0.00016798,2]
[368643359,1751261459308,-490.0,0.00016798,2]
[368643360,1751261459320,-490.0,0.00016798,2]
[368643361,1751261459334,-490.0,0.00016798,2]
[368643362,1751261459348,-490.0,0.00016798,2]
[368643363,1751261459361,-490.0,0.00016798,2]
[368643364,1751261459372,-490.0,0.00016798,2]
[368643365,1751261459385,-1357.96,0.00016798,2]
[368643366,1751261459397,-490.0,0.00016798,2]
[368643367,1751261459409,-691.11,0.00016798,2]
[368643368,1751261459421,-490.0,0.00016798,2]
[368643369,1751261459434,-490.0,0.00016798,2]
[368643370,1751261459447,-490.0,0.00016798,2]
[368643371,1751261459460,-490.0,0.00016798,2]
[368643372,1751261459475,-490.0,0.00016798,2]
[368643373,1751261459488,-735.84,0.00016798,2]
[368643374,1751261459499,-509.81,0.00016798,2]
[368643375,1751261459512,-2498.89,0.00016798,2]
[368643376,1751261459525,-490.0,0.00016798,2]
[368643377,1751261459538,-490.0,0.00016798,2]
[368643378,1751261459551,-502.45,0.00016798,2]
[368643379,1751261459563,-490.0,0.00016798,2]
[368643380,1751261459575,-490.0,0.00016798,2]
[368643381,1751261459588,-490.0,0.00016798,2]
[368643382,1751261459600,-490.0,0.00016798,2]
[368643383,1751261459612,-616.26,0.00016798,2]
[368643384,1751261459624,-681.61,0.00016798,2]
[368643385,1751261459636,-1281.72,0.00016798,2]
[368643386,1751261459648,-722.14,0.00016798,2]
[368643387,1751261459660,-596.77,0.00016798,2]
[368643388,1751261459671,-490.0,0.00016798,2]
[368643389,1751261459683,-490.0,0.00016798,2]
[368643390,1751261459695,-490.0,0.00016798,2]
[368643391,1751261459706,-492.72144197,0.00016798,2]
[368643392,1751261459718,-536.35,0.00016798,2]
[368643393,1751261459730,-522.97,0.00016798,2]
[368643394,1751261459743,-490.0,0.00016798,2]
[368643395,1751261459754,-1102.11,0.00016798,2]
[368643396,1751261459766,-745.26,0.00016798,2]
[368643397,1751261459778,-3317.59,0.00016798,2]
[368643398,1751261459790,-491.15312569,0.00016798,2]
[368643399,1751261459802,-490.0,0.00016798,2]
[368643400,1751261459814,-490.0,0.00016798,2]
[368643401,1751261459826,-490.0,0.00016798,2]
[368643402,1751261459837,-510.65,0.00016798,2]
[368643403,1751261459849,-490.0,0.00016798,2]
[368643404,1751261459861,-1883.83,0.00016798,2]
[368643405,1751261459873,-523.4,0.00016798,2]
[368643406,1751261459884,-490.0,0.00016798,2]
[368643407,1751261459897,-490.0,0.00016798,2]
[368643408,1751261459910,-490.0,0.00016798,2]
[368643409,1751261459922,-490.0,0.00016798,2]
[368643410,1751261459933,-490.67815203,0.00016798,2]
[368643411,1751261459946,-490.0,0.00016798,2]
[368643412,1751261459958,-490.0,0.00016798,2]
[368643413,1751261459969,-639.21,0.00016798,2]
[368643414,1751261459982,-490.0,0.00016798,2]
[368643415,1751261459993,-490.0,0.00016798,2]
[368643416,1751261460006,-1042.67,0.00016798,2]
[368643417,1751261460018,-563.64,0.00016798,2]
[368643418,1751261460030,-500.0,0.00016798,2]
[368643419,1751261460043,-490.0,0.00016798,2]
[368643420,1751261460057,-712.62,0.00016798,2]
[368643421,1751261460070,-779.19,0.00016798,2]
[368643422,1751261460083,-490.0,0.00016798,2]
[368643423,1751261460094,-876.72,0.00016798,2]
[368643424,1751261460107,-962.61,0.00016798,2]
[368643425,1751261460119,-490.0,0.00016798,2]
[368643426,1751261460131,-586.91,0.00016798,2]
[368643427,1751261460143,-490.0,0.00016798,2]
[368643428,1751261460155,-490.0,0.00016798,2]
[368643429,1751261460167,-490.0,0.00016798,2]
[368643430,1751261460179,-490.0,0.00016798,2]
[368643431,1751261460192,-490.0,0.00016798,2]
[368643432,1751261460204,-574.04,0.00016798,2]
[368643433,1751261460216,-761.29,0.00016798,2]
[368643434,1751261460228,-616.0,0.00016798,2]
[368643435,1751261460240,-728.62,0.00016798,2]
[368643436,1751261460253,-501.57656252,0.00016798,2]
[368643437,1751261460265,-151.0,0.00016799,2]
[368643438,1751261460278,-346.32560718,0.00016799,2]
[368643439,1751261460289,-151.0,0.00016799,2]
[368643440,1751261460302,-150.0,0.00016799,2]
[368643441,1751261460315,-500.0,0.00016799,2]
[368643442,1751261460328,-150.0,0.00016799,2]
[368643444,1751261460829,-500.0,0.00016799,2]
[368643445,1751261460865,-190.98282976,0.00016799,2]
[368643446,1751261460891,-500.0,0.00016799,2]
[368643447,1751261460924,-500.0,0.00016799,2]
[368643448,1751261460934,-150.0,0.00016799,2]
[368643449,1751261460944,-500.0,0.00016799,2]
[368643450,1751261460953,-500.0,0.00016799,2]
[368643451,1751261460963,-151.21626194,0.00016799,2]
[368643452,1751261460972,-500.0,0.00016799,2]
[368643453,1751261460982,-500.0,0.00016799,2]
[368643454,1751261460991,-1759.0,0.00016799,2]
[368643455,1751261461000,-154.31332976,0.00016799,2]
[368643456,1751261461009,-426.0,0.00016799,2]
[368643457,1751261461018,-366.01450192,0.00016804,2]
[368643458,1751261461027,-371.69001478,0.00016811,2]
[368643459,1751261461036,-1410.14,0.00016818,2]
[368643460,1751261461046,-638.03,0.00016818,2]
[368643461,1751261461055,-638.03,0.00016818,2]
[368643462,1751261461064,-638.03,0.00016818,2]
[368643463,1751261461073,-3317.59,0.00016818,2]
[368643464,1751261461082,-500.0,0.00016818,2]
[368643465,1751261461091,-500.0,0.00016818,2]
[368643466,1751261461101,-500.0,0.00016818,2]
[368643467,1751261461109,-500.0,0.00016818,2]
[368643468,1751261461118,-500.0,0.00016818,2]
[368643469,1751261461127,-549.49,0.00016818,2]
[368643470,1751261461136,-500.0,0.00016818,2]
[368643471,1751261461145,-500.0,0.00016818,2]
[368643472,1751261461154,-500.0,0.00016818,2]
[368643473,1751261461163,-500.0,0.00016818,2]
[368643474,1751261461172,-1249.16,0.00016818,2]
[368643475,1751261461181,-837.49,0.00016818,2]
[368643476,1751261461190,-684.83,0.00016818,2]
[368643477,1751261461199,-500.0,0.00016818,2]
[368643478,1751261461207,-410.49920279,0.00016818,2]
[368643479,1751261461216,-1598.72,0.00016819,2]
[368643480,1751261461225,-3317.59,0.00016819,2]
[368643481,1751261461234,-500.0,0.00016819,2]
[368643482,1751261461243,-16950.83838884,0.00016826,2]
[368643483,1751261461252,-1410.14,0.00016826,2]
[368643484,1751261461261,-500.0,0.00016826,2]
[368643485,1751261461270,-549.49,0.00016826,2]
[368643486,1751261461279,-500.0,0.00016826,2]
[368643487,1751261461287,-1894.93,0.00016826,2]
[368643488,1751261461297,-1249.16,0.00016826,2]
[368643489,1751261461306,-837.49,0.00016826,2]
[368643490,1751261461314,-62923.19870235,0.00016827,2]
[368643491,1751261461323,-638.03,0.00016827,2]
[368643492,1751261461332,-500.0,0.00016827,2]
[368643493,1751261461341,-500.0,0.00016827,2]
[368643494,1751261461350,-1410.14,0.00016828,2]
[368643495,1751261461359,-638.03,0.00016828,2]
[368643496,1751261461368,-1598.72,0.00016828,2]
[368643497,1751261461378,-1598.72,0.00016828,2]
[368643498,1751261461387,-1598.72,0.00016828,2]
[368643499,1751261461396,-3317.59,0.00016828,2]
[368643500,1751261461406,-3317.59,0.00016828,2]
[368643501,1751261461415,-3317.59,0.00016828,2]
[368643502,1751261461425,-500.0,0.00016828,2]
[368643503,1751261461434,-500.0,0.00016828,2]
[368643504,1751261461444,-500.0,0.00016828,2]
[368643505,1751261461453,-500.0,0.00016828,2]
[368643506,1751261461463,-549.49,0.00016828,2]
[368643507,1751261461475,-454.68802687,0.00016828,2]
[368643508,1751261461483,-837.49,0.00016828,2]
[368643509,1751261461493,-3442.0,0.00016838,2]
[368643510,1751261461503,-168.0,0.00016844,2]
[368643511,1751261461513,-366.01450192,0.00016846,2]
[368643512,1751261461522,-2225.0,0.0001685,2]
[368643513,1751261461531,-200.0,0.00016864,2]
[368643514,1751261461540,-150.0,0.0001687,2]
[368643515,1751261461551,-371.69001478,0.00016883,2]
[368643516,1751261461560,-366.01450192,0.00016888,2]
[368643517,1751261461569,-638.03,0.00016889,2]
[368643518,1751261461578,-638.03,0.00016889,2]
[368643519,1751261461588,-313.46636267,0.00016889,2]
[368643520,1751261461597,-1598.72,0.00016897,2]
[368643521,1751261461606,-525.51426385,0.00016897,2]
[368643522,1751261461615,-500.0,0.00016897,2]
[368643523,1751261461624,-1249.16,0.00016897,2]
[368643524,1751261461634,-638.03,0.00016898,2]
[368643525,1751261461644,-1598.72,0.00016898,2]
[368643526,1751261461653,-1598.72,0.00016898,2]
[368643527,1751261461663,-3317.59,0.00016898,2]
[368643528,1751261461672,-3317.59,0.00016898,2]
[368643529,1751261461682,-581.56809757,0.00016898,2]
[368643530,1751261461691,-1598.72,0.00016899,2]
[368643531,1751261461700,-3317.59,0.00016899,2]
[368643532,1751261461709,-500.0,0.00016915,2]
[368643533,1751261461719,-500.0,0.00016915,2]
[368643534,1751261461731,-327.4462,0.00016915,2]
[368643535,1751261461741,-684.83,0.00016915,2]
[368643536,1751261461751,-25528.09688267,0.00016915,2]
[368643537,1751261461760,-396.39,0.00016925,2]
[368643538,1751261461769,-366.01450192,0.00016929,2]
[368643539,1751261461779,-876.0,0.00016933,2]
[368643540,1751261461788,-335.328189,0.00016953,2]
[368643541,1751261461797,-371.69001478,0.00016954,2]
[368643542,1751261461807,-168.0,0.00016962,2]
[368643543,1751261461817,-1894.93,0.00016968,2]
[368643544,1751261461827,-490.0,0.00016969,2]
[368643545,1751261461836,-1000.0,0.00016969,2]
[368643546,1751261461846,-490.0,0.00016969,2]
[368643547,1751261461856,-666.25,0.00016969,2]
[368643548,1751261461865,-490.0,0.00016969,2]
[368643549,1751261461875,-855.25,0.00016969,2]
[368643550,1751261461885,-490.0,0.00016969,2]